Cogmind - Beta 14 @@@ ROGUE MODE // 2025.03.18 @ 12:46:38 Player: canerib Result: Destroyed by as-73942 with Assembled Blade Performance ------------- Evolutions (0) 0 Regions Visited (2) 400 Robots Destroyed (10) 50 Value Destroyed (87) 87 Prototype IDs (0) 0 Alien Tech Used (0) 0 Bonus (0) 0 TOTAL SCORE: 537 Bonus ------- None Cogmind --------- Core Integrity 0/250 Matter 300/300 Energy 100/100 System Corruption 9% Temperature Cool (0) Movement Core (100) Ox1 Location -10/Mines Parts ------- > --- POWER (1) -------- (None) > --- PROPULSION (2) --- (None) > --- UTILITY (2) ------ Small Storage Unit > --- WEAPON (2) ------- (None) > --- INVENTORY (8) ---- Light Ion Engine Improved Terrain Scanner Small Laser Light Assault Rifle Mining Laser Peak State ------------ > --- POWER ------------ Ion Engine > --- PROPULSION ------- Light Treads Light Treads > --- UTILITY ---------- Small Storage Unit Seismic Detector > --- WEAPON ----------- Small Laser Assault Rifle > --- INVENTORY -------- Light Ion Engine Small Laser Mining Laser [Rating: 7] Favorites ----------- Power Ion Engine Engine Ion Engine Propulsion Light Treads Treads Light Treads Utility Small Storage Unit Device Seismic Detector Storage Small Storage Unit Weapon Small Laser Energy Gun Small Laser Ballistic Gun Assault Rifle Build | -11 -10 -10 ------- Run | Yrd Mat Min Slots Evolved . | . . . Power . | . . . Propulsion . | . . . Utility . | . . . Weapon . | . . . Parts Attached 8 | 7 . 1 Power 2 | 1 . 1 Engine 2 | 1 . 1 Core . | . . . Reactor . | . . . Propulsion 2 | 2 . . Treads 2 | 2 . . Leg . | . . . Wheel . | . . . Hover . | . . . Flight . | . . . Utility 2 | 2 . . Device 1 | 1 . . Storage 1 | 1 . . Processor . | . . . Hackware . | . . . Protection . | . . . Artifact . | . . . Weapon 2 | 2 . . Energy Gun 1 | 1 . . Energy Cannon . | . . . Ballistic Gun 1 | 1 . . Ballistic Cannon . | . . . Launcher . | . . . Special Weapon . | . . . Impact Weapon . | . . . Slashing Weapon . | . . . Piercing Weapon . | . . . Special Melee Weapon . | . . . Unidentified Prototypes . | . . . Parts Lost 6 | . . 6 Power 2 | . . 2 Propulsion 1 | . . 1 Utility 1 | . . 1 Weapon 2 | . . 2 Highest Loss Streak 6 | . . 6 To Critical Strikes . | . . . Average Slot Usage (%) 96 | . 100 93 Engine 13 | . 14 13 Treads 26 | . 28 25 Device 13 | . 14 13 Storage 14 | . 14 14 Energy Gun 13 | . 14 13 Ballistic Gun 13 | . 14 12 Peak Build Rating 7 | 7 7 7 Average Rating 6 | 5 7 6 On Entrance 4 | . 7 7 Naked Turns . | . . . Heaviest Build 14 | 14 14 14 Greatest Support 40 | 40 40 40 Greatest Overweight (x) 3 | 1 . 3 Average Overweight (x) . | . . . Largest Inventory Capacity 8 | 8 8 8 Average Capacity 7 | 7 8 8 Most Carried 5 | 4 5 5 Average Carried 4 | 2 4 5 Final Capacity 8 | 8 8 8 Final Carried 5 | 4 5 5 Class Distribution -------------------- 100% | Mutant Dominant Class ---------------- Mutant | -10/Materials Mutant | -10/Mines Resources | -11 -10 -10 ----------- Run | Yrd Mat Min Matter Collected 324 | 297 18 9 Remotely . | . . . Salvage Created 210 | 116 94 . Parts 25 | 10 15 . Haulers Intercepted . | . . . Recyclers Shooed . | . . . Parts Field Recycled . | . . . Retrieved Matter . | . . . Parts Self-Destructed . | . . . Prevented . | . . . Kills | -11 -10 -10 ------- Run | Yrd Mat Min Combat Hostiles Destroyed 7 | . 6 1 Melee 1 | . . 1 Guns 6 | . 6 . Classes Destroyed 4 | 2 1 1 Tunneler 3 | 3 . . Recycler 1 | 1 . . Swarmer 6 | . 6 . Assembled 1 | . . 1 Best Kill Streak 3 | 3 3 1 Combat Bots Only 3 | . 3 1 Max Kills in Single Turn 1 | 1 1 1 Gunslinging . | . . . Exploded . | . . . Melee 1 | . . 1 Uniques/NPCs Destroyed . | . . . Combat | -11 -10 -10 -------- Run | Yrd Mat Min Hostile Shots Fired 84 | . 36 48 Missed 23 | . 11 12 Damage Taken 845 | . 198 647 Core 268 | . 36 232 Absorbed by Shields . | . . . Core Remaining (%) 100 | 100 . . Volleys Fired 22 | 9 11 2 Largest 2 | 2 2 2 Hottest 60 | 60 60 60 Shots Fired 44 | 18 22 4 Gun 44 | 18 22 4 Cannon . | . . . Launcher . | . . . Special . | . . . Kinetic 22 | 9 11 2 Thermal 22 | 9 11 2 Explosive . | . . . Electromagnetic . | . . . Robot Hit Streak 8 | 8 6 2 Robot Miss Streak 2 | 2 1 2 Penetration Max . | . . . Secondary Targets 1 | . 1 . Max Gunslinging Chain 1 | . 1 . Shots Hit Robots 28 | 12 14 2 Core Hits 13 | 5 7 1 Critical Kills . | . . . Critical Parts Destroyed . | . . . Critical Strikes . | . . . Melee Attacks . | . . . Impact . | . . . Slashing . | . . . Piercing . | . . . Sneak Attacks . | . . . Combat Hostiles . | . . . Follow-up Attacks . | . . . Damage Inflicted 320 | 112 164 44 Guns 314 | 112 164 38 Cannons . | . . . Explosions . | . . . Melee . | . . . Ramming 6 | . . 6 Kinetic 117 | 46 57 14 Thermal 197 | 66 107 24 Explosive . | . . . Electromagnetic . | . . . Impact . | . . . Slashing . | . . . Piercing . | . . . Highest Corruption 9 | . . 9 Average Corruption 6 | . . 6 Corruption Purged . | . . . Corruption Blocked . | . . . Effects 2 | . . 2 Message Errors 1 | . . 1 Energy Discharges 1 | . . 1 Overload Shots . | . . . Overflow Damage . | . . . Projectiles . | . . . Explosions . | . . . Melee . | . . . Knockbacks . | . . . Impact . | . . . Kinetic . | . . . Secondary . | . . . Self-Inflicted Damage 2 | . . 2 Shots . | . . . Rammed 3 | . . 3 Targets Rammed 4 | . . 4 Kicked . | . . . Crushed 1 | . . 1 Highest Temperature 55 | . . 55 Average Temperature 28 | . . 28 Received Heat Transfer 100 | . . 100 Siege Activations . | . . . Robots Corrupted . | . . . Combat Hostiles . | . . . Parts Fried . | . . . Impact Corruptions . | . . . Robots Melted . | . . . Combat Hostiles . | . . . Parts Melted . | . . . Heat Transferred 450 | 150 250 50 Parts Sabotaged . | . . . Parts Stolen . | . . . Parts Stripped . | . . . Power Chain Reactions . | . . . Alert | -11 -10 -10 ------- Run | Yrd Mat Min Peak Influence 203 | 20 203 83 Initial 78 | . 13 78 Average 78 | 8 141 76 Maximum Alert Level 1 | . 1 . Low Security (%) 97 | 100 93 100 Level 1 2 | . 6 . Level 2 . | . . . Level 3 . | . . . Level 4 . | . . . Level 5 . | . . . High Security . | . . . Max Security . | . . . Squads Dispatched 1 | . 1 . Investigation . | . . . Extermination . | . . . Reinforcement 1 | . 1 . Assault . | . . . Garrison . | . . . Intercept . | . . . Searches Triggered . | . . . Construction Impeded . | . . . Haulers Reinforced . | . . . Active Scanning Responses . | . . . Cargo Convoy Interrupts . | . . . Stealth | -11 -10 -10 --------- Run | Yrd Mat Min Distress Signals 2 | . 2 . Communications Jammed . | . . . Distress Signals . | . . . Times Spotted 32 | . 13 19 Peak Tracking Total 17 | . 5 17 Tactical Retreats 3 | . 1 2 Traps | -11 -10 -10 ------- Run | Yrd Mat Min Traps Triggered . | . . . Indirectly . | . . . Trap Hack Attempts . | . . . Triggered . | . . . Disarmed . | . . . Reprogrammed . | . . . Reused . | . . . Traps Extracted . | . . . Installed . | . . . Triggered . | . . . Machines | -11 -10 -10 ---------- Run | Yrd Mat Min Machines Disabled . | . . . Max in Single Turn . | . . . Machines Repaired . | . . . Machines Dismantled . | . . . Machines Sabotaged . | . . . Overloaded Fab Kills . | . . . Hacking | -11 -10 -10 --------- Run | Yrd Mat Min Machines Accessed 1 | . 1 . Terminals 1 | . 1 . Fabricators . | . . . Repair Stations . | . . . Recycling Units . | . . . Scanalyzers . | . . . Garrison Access . | . . . Total Hacks 4 | . 4 . Successful 2 | . 2 . Failed 2 | . 2 . Catastrophic . | . . . Database Lockouts . | . . . Manual . | . . . Terminals 4 | . 4 . Fabricators . | . . . Repair Stations . | . . . Recycling Units . | . . . Scanalyzers . | . . . Garrison Access . | . . . Terminal Hacks 2 | . 2 . Locate Traps 1 | . 1 . Patrol Status 1 | . 1 . Fabricator Hacks . | . . . Repair Station Hacks . | . . . Recycling Unit Hacks . | . . . Scanalyzer . | . . . Garrison Access Hacks . | . . . Unauthorized Hacks . | . . . Terminals . | . . . Fabricators . | . . . Repair Stations . | . . . Recycling Units . | . . . Scanalyzers . | . . . Garrison Access . | . . . Data Cores Recovered . | . . . Used . | . . . Hacking Detections 1 | . 1 . Full Trace Events . | . . . Feedback Events . | . . . Feedback Blocked . | . . . Robot Schematics Acquired . | . . . Robots Built . | . . . Authchips . | . . . Time . | . . . Total Robot Build Rating . | . . . Part Schematics Acquired . | . . . Parts Built . | . . . Authchips . | . . . Time . | . . . Total Part Build Rating . | . . . Parts Repaired . | . . . Time . | . . . Parts Recycled . | . . . Recycled Matter . | . . . Retrieved Matter . | . . . Retrieved Components . | . . . Parts Scanalyzed . | . . . Part Schematics Acquired . | . . . Parts Damaged . | . . . Bothacking | -11 -10 -10 ------------ Run | Yrd Mat Min Used RIF Installer . | . . . Robots Hacked . | . . . Non-combat . | . . . Combat . | . . . Robot Hacks Applied . | . . . Relay Couplers Released . | . . . Fabnet Peak Effective % . | . . . Robots Rewired . | . . . Allies Hacked . | . . . Hacks Repelled . | . . . Allies | -11 -10 -10 -------- Run | Yrd Mat Min Total Allies . | . . . Largest Group . | . . . Highest-Rated Group . | . . . Highest-Rated Ally . | . . . Total Orders . | . . . Ally Attacks . | . . . Total Damage . | . . . Kills . | . . . Allies Corrupted . | . . . Allies Melted . | . . . Intel | -11 -10 -10 ------- Run | Yrd Mat Min Robot Analysis Total . | . . . Derelict Logs Recovered . | . . . Drone Launches . | . . . Drone Recoveries . | . . . Exploration | -11 -10 -10 ------------- Run | Yrd Mat Min Turns Passed 601 | 188 220 193 Spaces Moved 310 | 96 102 112 Core 17 | 7 . 10 Treads 293 | 89 102 102 Legs . | . . . Wheels . | . . . Hover . | . . . Flight . | . . . Fastest Speed 50 | 50 160 150 Average Speed 158 | 153 160 160 Slowest Speed 200 | 160 160 200 Overloaded Moves . | . . . Propulsion Burnouts . | . . . Robots Hopped . | . . . Cave-ins Triggered . | . . . Exploration Rate (%) 21 | 7 30 26 Regions Visited 2 Branch Regions 1 Pre-discovered Areas . | . . . Known Exits Taken . | . . . Unknown Exits Taken 2 | 1 1 . Scrap Searched . | . . . Spaces Dug . | . . . Terrain Destroyed . | . . . Melee . | . . . Projectile . | . . . AOE . | . . . Terrain Rammed . | . . . Walls Destroyed . | . . . Machines Disabled . | . . . Actions | -11 -10 -10 --------- Run | Yrd Mat Min Total 372 | 116 137 119 Wait 24 | . 24 . Move 308 | 95 101 112 Hop . | . . . Pick Up 6 | 5 1 . Fast Attach 7 | 6 . 1 Attach 1 | 1 . . Detach . | . . . Swap . | . . . Drop . | . . . Fire 22 | 9 11 2 Melee . | . . . Ram 1 | . . 1 Kick . | . . . Crush 3 | . . 3 Escape Stasis . | . . . Rewire . | . . . Trap . | . . . Miscellaneous . | . . . Route ------- -11/Scrapyard -10/Materials -10/Mines History --------- Turn | Location | Event 13 | -11/Scrapyard | Discovered new exit (range 16) 189 | -11/Scrapyard | Entered Materials 309 | -10/Materials | Build established: Mutant 310 | -10/Materials | Discovered new exit (range 14) 409 | -10/Materials | Entered Mines 553 | -10/Mines | Assembled infested the area 597 | -10/Mines | Core integrity fell below 50% 600 | -10/Mines | Core integrity fell below 20% 602 | -10/Mines | Destroyed by as-73942 with Assembled Blade Last Messages --------------- 00419_ K-01 Serf collects debris. 00553_ ALERT: Infestation in the mines, dispatching Demolisher response squad. 00573_ Ion Engine destroyed. 00573_ System corrupted by crushing effect (+5). 00577_ Slammed into as-67370. 00580_ System corrupted: Energy discharge (-36). 00580_ Crushed as-67370. 00580_ as-67370 destroyed. 00583_ Lgt. Treads destroyed. 00583_ Lgt. Treads severed. 00583_ Acquired Lgt. Ion Engine. 00586_ Assault Rifle destroyed. 00587_ Acquired 9 matter. 00591_ Slammed into as-17325. 00591_ Seismic Detector destroyed. 00591_ System corrupted by crushing effect (+4). 00595_ Sml. Laser destroyed. 00600_ HVRN=VLSP:E5ZYJR2 &XPHI5CR 00602_ Lgt. Ion Engine destroyed. Map ----- +----------------------------------------------------+ | ???????????????????????????????????????? | | ???????????????????????????????????????? | | ???????????????????????????????????????? | | ???????????????????????????????????????? | | ???????????????????????????????????????? | | ???????????????????????????????????????? | | ???????????????????????????????????????? | | ???????????????????????????????????????? | | ???????????????????????????????????????? | | ???????????????????????????????????????? | | ???????????????????????????????????????? | | ???????????????????????????????????????? | | ???????????????????????????????????????? | | ???????????????????????????????????????? | | ???????????????????????????????????????? | | ???????????????????????????????????????? | | ??????????????????????????????????##???? | | ????????????????????????????????# ##??? | | ???????????????????????????????# ##?? | | ????????????????????????????### #?? | | ???????????????????????????# #?? | | ??????????????????????????# #?? | | ????????????????????????## #??? | | ???????????????????????## #???? | | ???????????????????????# #??????? | | ??????????????????????## @ #??????? | | ?????????????????????## a ##?????? | | ????????????????????##a a ##????? | | ????????????????????# #????? | | ???????????????????## #???? | | ??????????????????## #??? | | ????????????#######aaaa aa #??? | | #####???????#= !%=|% ###### #??? | | #???# ### ###### ##?????# < #??? | | #???# #????####??????? #??? | | #???##### #???????????????? #??? | | ######### ########????????? #??? | | != ???? #???? | | |%! ?????#?????? | | #####################??????????????? | | #####??????????????????????????????????? | | ???????????????????????????????????????? | | ???????????????????????????????????????? | | | | | | | | | | | | | | | +----------------------------------------------------+ Best States ------------- Heat Dissipation 25 Energy Generation 10 Energy Capacity 250 Matter Stores 300 Matter Capacity 300 Sight Range 16 Terrain Scan Density 10 Evasion (%) 40 Recoil Reduction 2 Item Schematics ----------------- None Robot Schematics ------------------ None Fabricated ------------ Nothing Alien Tech Used ----------------- None Achievements -------------- None Challenges ------------ None Game ------ Seed HeartThermicAutocannon Manual? 0 Play Time 00:04:44 Cumulative 75.3 hours Start 2025.03.18 @ 12:42:56 End 2025.03.18 @ 12:46:38 Sessions 1 Manual Loads 0 Difficulty Rogue Special Mode None Game No. 114 Rogue 114 Adventurer 0 Explorer 0 Win Type - Total 1 Types 1/0/0/0/0/0/0/0/0 Lore% 30 Gallery% 46 Achievement% 39 Wizard Run 0 Options --------- Layout 1 ASCII 1 Keyboard 0 Movement Numpad Keybinds 0 Fullscreen 1 Font 24/Smallcaps Map View 50x35 Zoom Use 0% Tactical HUD 1 Map Filters NONE Filters NONE Steam 1 RUN: 915bbd3a-7446-4e1a-a60e-9a060b9d6bb5